Workbook

Sheet Sale
B5: # Units | D5: Address | F5: City | H5: Zip | I5: Map Code
B6: 4 | C6: 320 Willie James Jones Ave | F6: San Diego | H6: 92102
B8: Price | C8: Cap Ex/Basis | D8: GRM | F8: CAP Rate | H8: $ / Unit
B9: 1450000 | C9: 0 | D9: Projected | E9: Market | F9: Projected | G9: Market | H9: =B9/B6 -> 362500
C10: =B9+C9 -> 1450000 | D10: =B9/E41 -> 13.08711506 | E10: =C10/F41 -> 12.11361738 | F10: =E45/B9 -> 0.05368706207 | G10: =F45/C10 -> 0.05964353103
B11: Price | C11: Avg | D11: Gross Sq. Ft. | F11: Parcel Size
B12: Per SF | C12: Unit SF | D12: (Approx.) | F12: (Approx.) | G12: Parking | H12: Yr. Built
B13: =B9/D13 -> 467.1391753 | C13: =D13/B6 -> 776 | D13: 3104 | F13: 7915 | G13: 10 spots (tandem) | H13: 1974
C14: Income Detail | G14: Annual Operating Expenses
B15: # of Units | C15: Type | D15: Rent | E15: Total | G15: (Estimated)
B16: Projected Income | F16: Esti. Expenses | H16: Prop Mgmt
B17: 1 | C17: MTM 2BR / 2BA w/ yard | D17: 1958 | E17: =D17*B17 -> 1958 | F17: Utilities | G17: 1000 | H17: OnSite Mgmt
B18: 1 | C18: 2BR / 2BA | D18: 2500 | E18: 2500 | F18: Water/Sewer | G18: =60*12*B6 -> 2880 | H18: Insurance | I18: 2400
B19: 1 | C19: 1BR + small BR / 1BA | D19: 2300 | E19: 2300 | F19: Contracted | G19: 1200 | H19: License/Fees
B20: 1 | C20: 1BR / 1BA | D20: 2100 | E20: =D20*B20 -> 2100 | F20: Trash | G20: 0 | H20: Pool
F21: Pest Control | G21: 0 | H21: Misc/Reserves | I21: 1000
F22: Maintenance | G22: 3000 | H22: Taxes* | I22: =B9*0.0125144 -> 18145.88
C23: Laundry | E23: 75 | F23: Total Annual Expenses | H23: =SUM(G16:G22)+SUM(I16:I22) -> 29625.88
B24: 10 | C24: Parking | D24: 0 | E24: =B24*D24 -> 0 | F24: Expenses per: | G24: Est. Sq. Ft. | H24: =H23/D13 -> 9.544420103
B25: 4 | C25: RUBS | D25: 75 | E25: =B25*D25 -> 300 | G25: Unit | H25: =H23/B6 -> 7406.47
B26: Total Monthly Income | E26: =SUM(E17:E25) -> 9233 | G26: % of GSI | H26: =H23/E41 -> 0.2673912416
B28: Stabilized Income | G28: Stabilized Expenses
B29: 1 | C29: 2BR / 2BA w/ yard | D29: 2700 | E29: =D29*B29 -> 2700 | F29: Esti. Expenses | G29: =G16 -> 0 | H29: Prop Mgmt
B30: 1 | C30: 2BR / 1BA | D30: 2500 | E30: 2500 | F30: Utilities | G30: =G17 -> 1000 | H30: OnSite Mgmt | I30: =I17 -> 0
B31: 1 | C31: 1BR + small BR / 1BA | D31: 2300 | E31: 2300 | F31: Water/Sewer | G31: 2880 | H31: Insurance | I31: 2400
B32: 1 | C32: 1BR / 1BA | D32: 2100 | E32: 2100 | F32: Contracted | G32: 1200 | H32: License/Fees | I32: 0
F33: Trash | G33: 0 | H33: Pool | I33: 0
C34: Laundry | E34: 75 | F34: Pest Control | G34: 0 | H34: Misc/Reserves | I34: 1000
B35: 10 | C35: Parking | D35: 0 | E35: =D35*B35 -> 0 | F35: Maintenance | G35: 3000 | H35: Taxes* | I35: 18145.88
B36: 4 | C36: RUBS | D36: 75 | E36: =B36*D36 -> 300 | F36: Total Annual Expenses | H36: =SUM(G29:G35)+SUM(I29:I35) -> 29625.88
B37: Total Monthly Income | E37: =SUM(E29:E36) -> 9975 | G37: % of GSI | H37: =H36/F41 -> 0.247501086
B39: Annual Operating Proforma | G39: Financing Summary
E40: Current | F40: Market
B41: Gross Scheduled Income | E41: =E26*12 -> 110796 | F41: =E37*12 -> 119700 | G41: Down Payment | I41: =B9*I42 -> 362500
B42: Less: Vacancy Factor | D42: 0.03 | E42: =E41*D42 -> 3323.88 | F42: =F41*D42 -> 3591 | I42: 0.25
B43: Gross Operating Income | E43: =E41-E42 -> 107472.12 | F43: =F41-F42 -> 116109
B44: Less: Expenses | D44: =H26 -> 0.2673912416 | E44: =H23 -> 29625.88 | F44: =H36 -> 29625.88 | G44: =F44/F41 -> 0.247501086
B45: Net Operating Income | E45: =E43-E44 -> 77846.24 | F45: =F43-F44 -> 86483.12 | G45: Proposed Financing: | I45: =B9-I41 -> 1087500
G46: Interest Rate: | I46: 0.065
B47: Less: 1st TD Payments | E47: =PMT(I46/12,I47*12,I45,0,0)*12 -> -82484.87707 | F47: =PMT(I46/12,I47*12,I45,0,0)*12 -> -82484.87707 | G47: Amortized over: | I47: 30
G49: Debt Coverage Ratio:
B50: Pre-Tax Cash Flow | E50: =E45+E47 -> -4638.637066 | F50: =F45+F47 -> 3998.242934 | G50: Current: | I50: =E45/E47*-1 -> 0.9437637876
G51: Market: | I51: =F45/F47*-1 -> 1.048472436
B52: Cash On Cash Return | E52: =E50/I41 -> -0.01279624018 | F52: =F50/(I41+C9) -> 0.01102963568
B54: Principal Reduction | E54: =(-E47)-(I45*I46) -> 11797.37707 | F54: =(-F47)-(I45*I46) -> 11797.37707
B55: Earned Return | E55: =(E50+E54)/I41 -> 0.01974824828 | F55: =(F50+F54)/(I41+C9) -> 0.04357412414
B56: The Browar Group
B57: Florian Sighe | 619.894.3030 | florian@thebrowargroup.com
B59: The information contained herein has been obtained from sources believed reliable. While The Browar Group does not doubt its accuracy, we have not verified it, and make no guarantee, warranty or representation about it. It is your responsibility to independently confirm its accuracy and completeness. Any projections, opinions, assumptions, or estimates are used for example only and do not represent the current or future performance of the property. The value of this transaction to you depends on tax, financial, and legal advisors. You and your advisors should conduct a careful, independent, investigation of the property to determine to your satisfaction the suitability of the property to your needs.
